Workbook

Sheet Saisie Ingrédients
B3: Référence Interne :
B4: NOM :
B5: INCI :
B6: Fournisseur :
B7: N° de Lot :
B8: Quantité Reçue (en g) :
B9: DLUO/DDM :
B10: Date de Réception :
B11: Bulletin d'Analyses :
B12: Seuil d'alerte :

Sheet Macérats
B2: Référence Interne : | C2: NOM : | D2: INCI : | E2: Fournisseur : | F2: N° de Lot : | G2: Quantité Reçue (en g) : | H2: DLUO/DDM : | I2: Date de Réception : | J2: Bulletin d'Analyses : | K2: Seuil d'Alerte (en g) : | L2: Quantité Utilisée (en g) : | M2: Recette : | N2: Quantité Restante (en g) :

Sheet Poudres
B2: Référence Interne : | C2: NOM : | D2: INCI : | E2: Fournisseur : | F2: N° de Lot : | G2: Quantité Reçue (en g) : | H2: DLUO/DDM : | I2: Date de Réception : | J2: Bulletin d'Analyses : | K2: Seuil d'Alerte (en g) : | L2: Quantité Utilisée (en g) : | M2: Recette : | N2: Quantité Restante (en g) :

Sheet Parfums-HE
B2: Référence Interne : | C2: NOM : | D2: INCI : | E2: Fournisseur : | F2: N° de Lot : | G2: Quantité Reçue (en g) : | H2: DLUO/DDM : | I2: Date de Réception : | J2: Bulletin d'Analyses : | K2: Seuil d'alerte (en g) : | L2: Quantité Utilisée (en g) : | M2: Recette : | N2: Quantité Restante (en g) :
B3: 2000 | C3: Lavande | D3: Lavandula Officinalis Flower Oil | E3: LANDEMA | F3: Test2000 | G3: 1000 | H3: 2025-12-31 | I3: 2025-01-01 | J3: Oui

Sheet Huiles et BV
B2: Référence Interne : | C2: NOM : | D2: INCI : | E2: Fournisseur : | F2: N° de Lot : | G2: Quantité Reçue (en g) : | H2: DLUO/DDM : | I2: Date de Réception : | J2: Bulletin d'Analyses : | K2: Seuil d'Alerte (en g) : | L2: Quantité Utilisée (en g) : | M2: Recette : | N2: Quantité Restante (en g) :
B3: 3000 | C3: Coco | D3: Coco | E3: ACTIBIO | F3: Test222 | G3: 25000 | H3: 2026-12-31 | I3: 2025-01-01 | J3: Oui

Sheet Additifs
B2: Référence Interne : | C2: NOM : | D2: INCI : | E2: Fournisseur : | F2: N° de Lot : | G2: Quantité Reçue (en g) : | H2: DLUO/DDM : | I2: Date de Réception : | J2: Bulletin d'Analyses : | K2: Seuil d'Alerte (en g) : | L2: Quantité Utilisée (en g) : | M2: Recette : | N2: Quantité Restante (en g) :
B3: 4000 | C3: Eau | D3: Aqua | E3: SAUR | F3: Test333 | G3: 10000 | H3: 2025-12-31 | I3: 2025-01-01 | J3: Oui

Sheet Poudres Synthé.
B2: Référence Interne : | C2: NOM : | D2: INCI : | E2: Fournisseur : | F2: N° de Lot : | G2: Quantité Reçue (en g) : | H2: DLUO/DDM : | I2: Date de Réception : | J2: Bulletin d'Analyses : | K2: Seuil d'Alerte (en g) : | L2: Quantité Utilisée (en g) : | M2: Recette : | N2: Quantité Restante (en g) :
B3: 5000 | C3: Soude | D3: Hydroxyde de sodium | E3: INNOVYN | F3: Test444 | G3: 25000 | H3: 2026-12-31 | I3: 2025-01-01 | J3: Oui

Sheet Ajouts
B2: Référence Interne : | C2: NOM : | D2: INCI : | E2: Fournisseur : | F2: N° de Lot : | G2: Quantité Reçue (en g) : | H2: DLUO/DDM : | I2: Date de Réception : | J2: Bulletin d'Analyses : | K2: Seuil d'Alerte (en g) : | L2: Quantité Utilisée (en g) : | M2: Recette : | N2: Quantité Restante (en g) :

Sheet Recettes
A1: Savons | F1: Cosmétiques
A2: SAVON TOUT OLIVE | F2: SHAMPOING POUR TOUS
A3: Réf. Int. | B3: Ingrédients | C3: Pourcentage | D3: Poids théorique (en g) | F3: Réf. Int. | G3: Ingrédients | H3: Pourcentage | I3: Poids théorique (en g)
A4: 2 | B4: =IF(A4="","",IFERROR(VLOOKUP(A4,Tingr[],2,0),"?")) -> ? | C4: =D4/D8 -> 0.5544005544 | D4: 800 | F4: 5001 | G4: =IF(F4="","",IFERROR(VLOOKUP(F4,Tingr[],2,0),"?")) -> ? | H4: =I4/I10 -> 0.4 | I4: 40
A5: 3000 | B5: =IF(A5="","",IFERROR(VLOOKUP(A5,Tingr[],2,0),"?")) -> ? | C5: =D5/D8 -> 0.1386001386 | D5: 200 | F5: 1004 | G5: =IF(F5="","",IFERROR(VLOOKUP(F5,Tingr[],2,0),"?")) -> ? | H5: =I5/I10 -> 0.2 | I5: 20
A6: 4000 | B6: =IF(A6="","",IFERROR(VLOOKUP(A6,Tingr[],2,0),"?")) -> ? | C6: =D6/D8 -> 0.2079002079 | D6: 300 | F6: 4002 | G6: =IF(F6="","",IFERROR(VLOOKUP(F6,Tingr[],2,0),"?")) -> ? | H6: =I6/I10 -> 0.15 | I6: 15
A7: 5000 | B7: =IF(A7="","",IFERROR(VLOOKUP(A7,Tingr[],2,0),"?")) -> ? | C7: =D7/D8 -> 0.0990990991 | D7: 143 | F7: 4004 | G7: =IF(F7="","",IFERROR(VLOOKUP(F7,Tingr[],2,0),"?")) -> ? | H7: =I7/I10 -> 0.15 | I7: 15
A8: TOTAL | C8: =SUM(C4:C7) -> 1 | D8: =SUM(D4:D7) -> 1443 | F8: 3006 | G8: =IF(F8="","",IFERROR(VLOOKUP(F8,Tingr[],2,0),"?")) -> ? | H8: =I8/I10 -> 0.07 | I8: 7
F9: 3010 | G9: =IF(F9="","",IFERROR(VLOOKUP(F9,Tingr[],2,0),"?")) -> ? | H9: =I9/I10 -> 0.03 | I9: 3
F10: TOTAL | H10: =SUM(H4:H9) -> 1 | I10: =SUM(I4:I9) -> 100

Sheet MO Savons
C2: FICHE DE FABRICATION D'UN SAVON
C4: Date de fabrication :
C5: Code interne : | E5: =IF(E18="SAVON_TOUT_OLIVE","TO",IF(E18="SAVON_ROSE","SR",IF(E18="SAVON_PETIT_COCO","PC",IF(E18="SAVON_CHOCO_VANI","CV",IF(E18="SAVON_CAROTTE","CAR","CAN"))))) -> TO
C6: Numéro de lot : | E6: 23
C7: Température :
C8: Hygrométrie :
C9: Autre :
C10: Coefficient multiplicateur : | G10: Réf. Int. | H10: Ingrédients | I10: Pourcentage | J10: Poids théorique (en g) | K10: Pesée réelle (en g) | L10: Lot/DLU
C11: Moules utilisés :
C12: Matériels utilisés : | G12: =INDIRECT($E$18) -> 2 | H12: ? | I12: 0.5544005544 | J12: 800 | K12: 805 | L12: Test111
C13: Liquide : | G13: 3000 | H13: ? | I13: 0.1386001386 | J13: 200 | K13: 205 | L13: Test222
C14: Température corps gras : | G14: 4000 | H14: ? | I14: 0.2079002079 | J14: 300 | K14: 295 | L14: Test333
C15: Température soude : | G15: 5000 | H15: ? | I15: 0.0990990991 | J15: 143 | K15: 140 | L15: Test444
C16: Additifs ajoutés : | G16: TOTAL | H16: 0 | I16: 1 | J16: 1443
C17: Surgras : | E17: 0.08
C18: Recette : | E18: SAVON_TOUT_OLIVE
C19: Poids du lot :
C20: Quantité de savons :
C21: Observations :
C22: Contrôle olfactif :
C23: Contrôle visuel :
C24: pH :
C25: Date de mise en cure :
C26: Date de sortie de cure prévue :

Sheet MO Cosmét.
C2: FICHE DE FABRICATION D'UN COSMETIQUE
C4: Date de fabrication :
C5: Code interne : | E5: =IF(E14="SHAMPOING_POUR_TOUS","ShCN",IF(E14="BAUME_A_LEVRES","BAUL",IF(E14="BAUME_MAINS_PIEDS","BMP",IF(E14="DENTIFRICE","DENT",IF(E14="DEODORANT_MENTHE_CITRON","DeoMC",IF(E14="DEODORANT_THE_VERT","DeoTV","FC")))))) -> ShCN
C6: Numéro de lot : | E6: 31
C7: Température :
C8: Hygrométrie :
C9: Autre :
C10: Moules utilisés : | G10: Réf. Int. | H10: Ingrédients | I10: Pourcentage | J10: Poids théorique (en g) | K10: Pesée réelle (en g) | L10: Lot/DLU
C11: Matériels utilisés :
C12: Coefficient multiplicateur : | G12: =INDIRECT($E$14) -> 5001 | H12: ? | I12: 0.4 | J12: 40 | K12: 35 | L12: Test511
C13: Contenants utilisés : | G13: 1004 | H13: ? | I13: 0.2 | J13: 20 | K13: 25 | L13: Test512
C14: Recette : | E14: SHAMPOING_POUR_TOUS | G14: 4002 | H14: ? | I14: 0.15 | J14: 15 | K14: 12 | L14: Test513
C15: Poids total de la préparation : | G15: 4004 | H15: ? | I15: 0.15 | J15: 15 | K15: 20 | L15: Test514
C16: Quantité : | G16: 3006 | H16: ? | I16: 0.07 | J16: 7 | K16: 6 | L16: Test515
C17: Contrôle olfactif : | G17: 3010 | H17: ? | I17: 0.03 | J17: 3 | K17: 5 | L17: Test516
C18: Contrôle visuel : | G18: TOTAL | H18: 0 | I18: 1 | J18: 100
C19: Observations :
C20: Autres :

Sheet Data
A1: SAVONS | D1: COSMETIQUES | G1: Fournisseurs | I1: INGREDIENTS | J1: Colonne1 | K1: Colonne2 | L1: Colonne3
A2: Recettes | B2: Code Interne | D2: Recettes | E2: Code Interne | I2: Réf. Int. | J2: Nom | K2: INCI | L2: Seuil d'alerte (en g)
A3: SAVON_TOUT_OLIVE | B3: TO | D3: SHAMPOING_POUR_TOUS | E3: ShCN | G3: ACTIBIO | I3: 0000 | J3: Camomille | K3: Matricaria Chamomilla Flower Extract in Olea Europaea Fruit Oil | L3: 2000
A4: SAVON_ROSE | B4: SR | D4: BAUME_A_LEVRES | E4: BAUL | G4: ARCANE | I4: 0001 | J4: Lauriers | K4: Laurus Nobilis in Olea Europaea Fruit Oil | L4: 2000
A5: SAVON_PETIT_COCO | B5: PC | D5: BAUME_MAINS_PIEDS | E5: BMP | G5: AROMAZONE | I5: 0002 | J5: Vanille | K5: Vanilla Planifolia Fruit Extract in Olea Europaea Fruit Oil | L5: 2000
A6: SAVON_CHOCO_VANI | B6: CV | D6: DENTIFRICE | E6: DENT | G6: BIORIGINS | I6: 0003 | J6: Calendula | K6: Calendula Officinalis Flower Extract in Vitis Vinifera Seed Oil | L6: 2000
A7: SAVON_CAROTTE | B7: CAR | D7: DEODORANT_MENTHE_CITRON | E7: DeoMC | G7: INNOVYN | I7: 1000 | J7: Argile Rose | K7: Pink Clay | L7: 50
A8: SAVON_CANNELE | B8: CAN | D8: DEODORANT_THE_VERT | E8: DeoTV | G8: JMVANILLE | I8: 1001 | J8: Bicarbonate de Soude | K8: Sodium Bicarbonate
D9: FONDANT_POUR_LE_CORPS | E9: FC | G9: LANDEMA | I9: 1002 | J9: Charbon Végétal | K9: Charcaol Powder | L9: 10
G10: LES_SAVONS_DE_NANOU | I10: 1003 | J10: Cacao | K10: Theobroma Cacao Fruit Powder | L10: 50
G11: MYSTIC_MOMENT | I11: 1004 | J11: Rhassoul | K11: Moroccan Lava Clay | L11: 2000
G12: NAISSANCE | I12: 1005 | J12: Alun | K12: Potasium Alum | L12: 100
G13: NESTLE | I13: 1006 | J13: Kaolin | K13: Kaolin | L13: 1000
G14: OKA_COSMETICS | I14: 1007 | J14: Carbonate de Calcium | K14: Calcium Carbonate | L14: 100
G15: PAQUITO | I15: 1008 | J15: Argile Verte | K15: Green Clay
G16: SAUR | I16: 1009 | J16: Cristaux de Menthe | K16: Menthol
G17: SUPER_U | I17: 2000 | J17: Lavande | K17: Lavandula Officinalis Flower Oil | L17: 50
I18: 2001 | J18: Cèdres | K18: Cedrus Atlantica Bark Oil | L18: 50
I19: 2002 | J19: Litsee Citronnée | K19: Litsea Cubeba May Chang Oil | L19: 50
I20: 2003 | J20: Patchouli | K20: Pogostemon Cablin Leaf Oil | L20: 50
I21: 2004 | J21: Geranium Bourbon | K21: Geranium Bourbon Essential Oil | L21: 50
I22: 2005 | J22: Camomille | K22: Anthemis Nobilis Flower Oil | L22: 50
I23: 2006 | J23: Mandarine Verte | K23: Citrus Reticulata Peel Oil | L23: 50
I24: 2007 | J24: Gingembre | K24: Zingiber Officinale Root Oil | L24: 50
I25: 2008 | J25: Palmarosa | K25: Cymbopogon Martini Oil | L25: 50
I26: 2009 | J26: Orange | K26: Citrus Sinensis Peel Oil Expressed | L26: 50
I27: 2010 | J27: Menthe Poivrée | K27: Mentha Piperita Oil | L27: 50
I28: 2011 | J28: Ylang Ylang | K28: Cananga Odorata Flower Oil | L28: 50
I29: 2012 | J29: Citron | K29: Citrus Lemon Peel Oil | L29: 50
I30: 2013 | J30: Thé Vert | K30: Camellia Sinensis Leaf Extract | L30: 50
I31: 3000 | J31: Coco | K31: Cocos Nucifera Seed Butter | L31: 5000
I32: 3001 | J32: Karité | K32: Butyspermum Parkii Butter | L32: 5000
I33: 3002 | J33: Macadamia | K33: Macadamia Ternifolia Seed Oil | L33: 5000
I34: 3003 | J34: Olive | K34: Olea Europea Fruit Oil | L34: 5000
I35: 3004 | J35: Raisins | K35: Vitis Vinifera Seed Oil | L35: 5000
I36: 3005 | J36: Sésame | K36: Sesamum Communis Seed Oil | L36: 5000
I37: 3006 | J37: Ricin | K37: Ricinius Communis Seed Oil | L37: 5000
I38: 3007 | J38: Blé | K38: Triticum Vulgare Germ Oil | L38: 5000
I39: 3008 | J39: Colza | K39: Brassica Campestris Seed Oil | L39: 5000
I40: 3009 | J40: Cire d'Abeilles | K40: Cera Alba | L40: 5000
I41: 3010 | J41: Cameline | K41: Camelina Sativa Seed Oil | L41: 5000
I42: 4000 | J42: Eau | K42: Aqua | L42: 0
I43: 4001 | J43: Jus de Carottes | K43: Daucus Carotta Sativa Juice | L43: 1000
I44: 4002 | J44: Gel d'Aloe Vera | K44: Aloe Barbadensis Leaf Juice | L44: 2000
I45: 4003 | J45: Crème de Coco | K45: Coco Nucifera Fruit | L45: 1000
I46: 4004 | J46: Glycérine | K46: Glycerin | L46: 2000
I47: 5000 | J47: Soude | K47: Sodium Hydroxyde | L47: 5000
I48: 5001 | J48: SCI | K48: Sodium Cocoyl Isethionate | L48: 2000
I49: 6000 | J49: Fleurs Camomilles | K49: Chamomilla Matricaria Flower Extract | L49: 0
I50: 6001 | J50: Fleurs de Soucis | K50: Calendula Officinalis Flower Extract | L50: 0
I51: 6002 | J51: Fleurs de Lauriers | K51: Laurus Nobilis Extract | L51: 0
I52: 6003 | J52: Gousses de Vanille | K52: Vanilla Planifolia Fruit | L52: 0
